bitfinex-derivatives/quotes_SOLF0:USTF0_20251002
["timestamp","ask_amount","ask_price","bid_price","bid_amount"]
[1759418343851,3.09245512,225.34,225.3,7.48]
[1759418344055,3.09245512,225.37,225.29,13.20466025]
[1759418344253,3.09245512,225.36,225.31,1.73226025]
[1759418344451,3.09245512,225.35,225.32,7.48]
[1759418344753,3.09245512,225.38,225.31,9.21226025]
[1759418344953,3.09245512,225.37,225.31,9.21226025]
[1759418345154,3.09245512,225.36,225.32,7.48]
[1759418345352,3.09245512,225.38,225.32,7.48]
[1759418345653,3.09245512,225.37,225.31,13.20426025]
[1759418345854,3.09245512,225.36,225.31,5.72426025]
[1759418346156,7.01,225.39,225.31,5.72426025]
[1759418346157,3.09245512,225.35,225.31,1.73226025]
[1759418346356,3.09245512,225.34,225.31,1.73226025]
[1759418346657,7.01,225.35,225.31,1.73226025]
[1759418346954,3.09245512,225.34,225.31,1.73226025]
[1759418347556,3.09245512,225.34,225.31,9.21226025]
[1759418347956,3.09245512,225.34,225.31,1.73226025]
[1759418348153,3.09245512,225.34,225.28,11.4724]
[1759418348154,10.10245512,225.34,225.29,1.73226025]
[1759418348354,3.09245512,225.33,225.27,5.80070177]
[1759418348653,3.09245512,225.33,225.27,13.28070177]
[1759418348854,3.09245512,225.34,225.28,1.73226025]
[1759418349052,3.09245512,225.33,225.29,7.48]
[1759418349353,10.10245512,225.34,225.29,7.48]
[1759418349652,3.09245512,225.33,225.29,7.48]
[1759418350146,3.09245512,225.33,225.28,1.73226025]
[1759418350452,3.09245512,225.36,225.31,1.73226025]
[1759418350651,3.09245512,225.35,225.32,7.48]
[1759418350851,3.09245512,225.37,225.32,7.48]
[1759418351156,3.09245512,225.36,225.32,7.48]
[1759418351361,3.09245512,225.35,225.32,7.48]
[1759418351547,7.08325512,225.39,225.32,7.48]
[1759418351752,3.09245512,225.38,225.32,7.48]
[1759418351953,10.10245512,225.37,225.32,7.48]
[1759418352155,3.09245512,225.36,225.32,7.48]
[1759418352352,3.09245512,225.35,225.3,1.73226025]
[1759418352554,10.10245512,225.34,225.28,5.72476025]
[1759418352757,7.01,225.34,225.28,5.72476025]
[1759418352953,1.73226025,225.32,225.23,7.48]
[1759418353152,3.09245512,225.31,225.23,7.48]
[1759418353353,3.09245512,225.3,225.23,7.48]
[1759418353659,3.09245512,225.31,225.23,9.21226025]
[1759418353852,3.09245512,225.3,225.23,13.20576025]
[1759418354052,3.09245512,225.29,225.23,13.20576025]
[1759418354253,7.01,225.31,225.23,13.20576025]
[1759418354254,3.09245512,225.3,225.23,13.20576025]
[1759418354454,3.09245512,225.29,225.23,7.48]
[1759418354654,11.83471537,225.28,225.19,1.73226025]
[1759418354860,3.09245512,225.27,225.19,1.73226025]
[1759418355053,8.74226025,225.28,225.19,1.73226025]
[1759418355054,3.09245512,225.26,225.19,1.73226025]
[1759418355259,3.09245512,225.27,225.18,11.4742]
[1759418355458,8.74226025,225.28,225.18,11.4742]
[1759418355459,4.82471537,225.26,225.18,11.4742]
[1759418355654,3.09245512,225.25,225.18,11.4742]
[1759418357159,3.09245512,225.25,225.2,3.994]
[1759418357352,10.10245512,225.25,225.2,7.48]
[1759418357555,7.01,225.24,225.17,1.73226025]
[1759418357861,7.01,225.24,225.17,5.72666025]
[1759418358363,3.09245512,225.25,225.17,1.73226025]
[1759418358564,3.09245512,225.25,225.16,13.20686025]
[1759418358765,3.09245512,225.25,225.16,9.21226025]
[1759418358965,8.74226025,225.26,225.18,1.73226025]
[1759418359165,8.74226025,225.26,225.18,5.72646025]
[1759418359760,11.83471537,225.26,225.18,5.72646025]
[1759418360062,3.09245512,225.25,225.18,1.73226025]
[1759418360264,8.74226025,225.26,225.18,1.73226025]
[1759418360866,8.74226025,225.26,225.2,3.9939]
[1759418362667,8.74226025,225.26,225.18,5.72666025]
[1759418363464,11.82182683,225.26,225.19,3.994]
[1759418363669,8.74226025,225.26,225.19,3.994]
[1759418363873,10.08951474,225.26,225.18,1.73226025]
[1759418364066,8.74226025,225.26,225.18,1.73226025]
[1759418364371,7.01,225.26,225.2,3.9939]
[1759418364967,7.01,225.26,225.18,1.73226025]
[1759418365270,7.01,225.26,225.2,1.73226025]
[1759418365970,3.07951474,225.29,225.22,3.9935]
[1759418366175,7.02,225.29,225.22,7.16]
[1759418366366,10.09951474,225.29,225.22,7.16]
[1759418366561,7.02,225.29,225.22,7.16]
[1759418367575,7.02,225.29,225.25,3.9931]
[1759418368875,7.02,225.31,225.25,3.9931]
[1759418369070,7.02,225.29,225.25,3.9931]
[1759418369275,7.02,225.3,225.25,3.9931]
[1759418369471,7.02,225.29,225.25,3.9931]
[1759418369678,7.02,225.3,225.25,3.9931]
[1759418369874,3.07951474,225.29,225.23,3.9934]
[1759418371982,10.09951474,225.29,225.24,3.9932]
[1759418372184,7.02,225.29,225.24,11.2432]
[1759418372578,7.02,225.29,225.25,7.25]
[1759418372781,7.02,225.3,225.24,3.9932]
[1759418373075,10.09730135,225.3,225.22,3.9936]
[1759418373279,10.09730135,225.29,225.17,2.70785076]
[1759418373477,7.02,225.27,225.17,2.70785076]
[1759418373680,3.07730135,225.26,225.17,2.70785076]
[1759418374079,3.07730135,225.26,225.19,3.9941]
[1759418374379,3.07730135,225.26,225.17,2.70785076]
[1759418375278,3.07730135,225.26,225.2,3.9939]
[1759418375483,3.07730135,225.26,225.17,2.70785076]
[1759418375781,3.07730135,225.32,225.26,3.993]
[1759418376084,3.07730135,225.33,225.25,2.70785076]
[1759418376273,7.02,225.34,225.25,2.70785076]
[1759418376474,10.09730135,225.38,225.29,2.70785076]
[1759418376684,7.02,225.38,225.3,7.25]
[1759418377482,10.09730135,225.38,225.3,11.2421]
[1759418377688,7.02,225.36,225.26,7.25]
[1759418377885,10.09730135,225.36,225.26,7.25]
[1759418378086,7.02,225.36,225.26,7.25]
[1759418378480,7.02,225.36,225.28,3.9924]
[1759418378882,3.07730135,225.35,225.26,7.25]
[1759418379483,10.09730135,225.34,225.26,7.25]
[1759418379683,7.02,225.34,225.26,7.25]
[1759418380182,3.07730135,225.33,225.26,7.25]
[1759418380381,7.02,225.34,225.26,7.25]
[1759418380586,11.0115,225.34,225.26,7.25]
[1759418381788,3.9919,225.32,225.22,9.95785076]
[1759418381986,7.02,225.31,225.22,7.25]
[1759418382386,10.03544225,225.31,225.22,7.25]
[1759418382581,7.02,225.29,225.19,2.70785076]
[1759418382785,10.03544225,225.29,225.19,2.70785076]
[1759418383089,7.02,225.29,225.19,2.70785076]
[1759418383386,3.9928,225.28,225.2,3.994]
[1759418383586,3.9928,225.28,225.17,7.25]
[1759418383587,7.02,225.27,225.17,7.25]
[1759418383782,3.9935,225.23,225.15,3.9948]
[1759418383984,11.0135,225.23,225.13,7.25]
[1759418384481,11.0135,225.23,225.14,3.9949]
[1759418384682,3.9938,225.21,225.13,7.25]
[1759418384884,3.9938,225.21,225.08,2.70785076]
[1759418385088,10.09752946,225.2,225.09,7.25]
[1759418385888,7.07172946,225.19,225.09,11.2459]
[1759418386279,7.07172946,225.19,225.09,7.25]
[1759418386482,10.09752946,225.18,225.09,7.25]
[1759418389089,3.9946,225.17,225.09,7.25]
[1759418389296,7.07212946,225.17,225.09,7.25]
[1759418390192,3.07752946,225.17,225.1,2.70785076]
[1759418390389,112.5,225.22,225.11,7.25]
[1759418390696,3.07752946,225.21,225.13,3.9952]
[1759418390888,10.09752946,225.22,225.14,9.95785076]
[1759418392997,7.02,225.22,225.15,3.9948]
[1759418393296,7.02,225.22,225.14,9.95785076]
[1759418394499,7.02,225.22,225.14,13.95285076]
[1759418395200,3.07032773,225.23,225.14,13.95285076]
[1759418395387,3.9933,225.24,225.16,3.9947]
[1759418395794,3.07032773,225.25,225.16,3.9947]
[1759418396098,3.07032773,225.25,225.18,3.9943]
[1759418396596,3.07032773,225.25,225.18,6.70215076]
[1759418396789,7.02,225.3,225.2,7.25]
[1759418396994,7.02,225.3,225.23,2.70785076]
[1759418398194,7.02,225.3,225.2,9.95785076]
[1759418398601,7.02,225.3,225.22,3.9936]
[1759418398795,10.09043188,225.3,225.22,3.9936]
[1759418398999,3.07043188,225.3,225.24,2.70785076]
[1759418399299,3.07043188,225.32,225.24,2.70785076]
[1759418399497,7.06223188,225.32,225.24,2.70785076]
[1759418399796,10.09043188,225.31,225.24,2.70785076]
[1759418399995,7.02,225.31,225.24,2.70785076]
[1759418400400,7.02,225.28,225.24,2.70785076]
[1759418400601,330.1,225.33,225.25,7.25]
[1759418400901,3.02366312,225.32,225.25,7.25]
[1759418401298,3.992,225.31,225.24,2.70785076]
[1759418401499,7.01,225.3,225.24,2.70785076]
[1759418401902,7.01556312,225.32,225.24,9.86785076]
[1759418402407,3.02366312,225.32,225.25,7.16]
[1759418402603,323.08,225.33,225.25,7.16]
[1759418403202,3.0239899,225.32,225.25,7.16]
[1759418403400,7.01,225.31,225.23,2.70785076]
[1759418403600,7.01,225.31,225.21,7.16]
[1759418403601,3.9926,225.28,225.21,7.16]
[1759418404204,7.0165899,225.28,225.21,7.16]
[1759418404903,3.0239899,225.28,225.21,7.16]
[1759418405102,7.01,225.27,225.16,7.16]
[1759418405405,10.0339899,225.27,225.16,7.16]
[1759418405805,3.993,225.25,225.18,2.70785076]
[1759418406306,3.993,225.25,225.17,3.9944]
[1759418407004,3.9935,225.23,225.16,7.16]
[1759418407402,3.0239899,225.26,225.16,7.16]
[1759418407703,7.01,225.25,225.16,7.16]
[1759418407904,10.0339899,225.25,225.16,7.16]
[1759418409608,7.01,225.22,225.1,7.16]
[1759418409804,10.0339899,225.22,225.1,7.16]
[1759418410608,3.9944,225.18,225.1,7.16]
[1759418411006,111.15,225.19,225.1,7.16]
[1759418411912,111.15,225.19,225.02,5.84004093]
[1759418411913,7.01,225.17,225.05,7.16]
[1759418412114,3.9952,225.13,225.05,7.16]
[1759418412512,11.0052,225.13,225.05,7.16]
[1759418412709,7.01,225.13,225.05,7.16]
[1759418413715,3.9956,225.11,225.05,7.16]
[1759418414111,3.996,225.09,225.01,7.16]
[1759418414318,7.01,225.1,225.01,7.16]
[1759418414515,112.06,225.09,225.01,7.16]
[1759418414716,7.01,225.1,225.01,7.16]
[1759418414911,11.0058,225.1,225.01,7.16]
[1759418415107,112.06,225.09,225.01,7.16]
[1759418415518,3.9961,225.08,225.01,7.16]
[1759418415719,3.9961,225.08,224.96,7.16]
[1759418416018,7.01,225.08,224.96,7.16]
[1759418416419,69.1722,225.08,224.96,7.16]
[1759418416811,7.01,225.08,224.96,7.16]
[1759418417721,7.01,225.06,224.96,7.16]
[1759418417916,11.0071,225.02,224.92,7.16]
[1759418418223,123.0671,225.02,224.92,7.16]
[1759418418422,7.01,225.02,224.92,11.1589]
[1759418418721,7.01,225.02,224.92,7.16]
[1759418419423,17.15245474,225.37,224.91,3.9989]
[1759418419424,7.01,225.07,224.96,7.16]
[1759418419912,7.01,225.07,224.93,62.2022]
[1759418420116,63.52,225.08,224.98,7.16]
[1759418420314,7.01,225.11,224.98,7.16]
[1759418420516,72.43,225.11,225.03,3.9969]
[1759418420717,112.06,225.14,225.03,11.1569]
[1759418421424,116.055,225.14,225.03,7.16]
[1759418421925,7.01,225.16,225.03,7.16]
[1759418422125,327.2146,225.17,225.01,62.1796]
[1759418422126,119.07,225.21,225.05,7.16]
[1759418422320,65.18280831,225.2,225.05,7.16]
[1759418422516,3.05410831,225.19,225.08,7.16]
[1759418422721,3.9942,225.19,225.08,7.16]
[1759418422921,3.05410831,225.2,225.08,7.16]
[1759418423925,7.01,225.17,225.08,7.16]
[1759418424928,3.05410831,225.18,225.08,7.16]
[1759418425223,3.9945,225.17,225.08,7.16]
[1759418425421,7.02,225.17,225.02,7.12541276]
[1759418425629,7.02,225.17,225.03,7.19]
[1759418425830,3.9959,225.09,224.98,7.19]
[1759418426730,7.02,225.1,224.98,7.19]
[1759418427427,7.02,225.1,225.0,3.9975]
[1759418427731,69.1769,225.1,224.98,7.19]
[1759418428123,7.02,225.1,224.98,7.19]
[1759418429329,7.02,225.1,225.0,3.9974]
[1759418429929,3.9959,225.09,225.0,3.9974]
[1759418430231,7.02,225.1,224.98,7.19]
[1759418430628,3.9963,225.07,224.98,7.19]
[1759418431329,3.9966,225.05,224.98,7.19]
[1759418431529,3.9966,225.05,224.94,3.9984]
[1759418431530,7.02,225.07,224.94,3.9984]
[1759418431927,7.02,225.04,224.93,7.59]
[1759418432332,3.9978,224.98,224.88,3.9996]
[1759418433131,3.9982,224.97,224.86,16.11053676]
[1759418433330,3.9982,224.97,224.86,11.5899]
[1759418433533,7.02,224.98,224.86,7.59]
[1759418434032,7.02,224.98,224.85,5.95558777]
[1759418434033,7.02,224.95,224.82,323.22]
[1759418434227,7.02,224.95,224.81,7.59]
[1759418434428,10.07279674,224.95,224.81,7.59]
[1759418434639,3.9989,224.92,224.83,4.0004]
[1759418434842,7.02,224.95,224.84,7.59]
[1759418435239,11.0185,224.95,224.84,7.59]
[1759418435634,7.02,224.95,224.85,4.0001]
[1759418435830,7.02,225.0,224.85,62.2239]
[1759418436030,7.02,225.0,224.89,7.59]
[1759418436335,11.0175,225.0,224.89,7.59]
[1759418436838,11.0175,225.0,224.9,3.9992]
[1759418437231,11.0175,225.0,224.89,7.59]
[1759418437436,3.9979,224.98,224.89,7.59]
[1759418437632,7.02,225.0,224.89,7.59]
[1759418438442,3.9977,224.99,224.89,7.59]
[1759418438742,7.02,224.98,224.83,12.11063676]
[1759418439437,7.02,224.98,224.83,4.52063676]
[1759418439644,7.02,224.98,224.84,7.59]
[1759418440939,3.9985,224.94,224.85,4.0001]
[1759418441543,3.9981,224.97,224.85,4.0001]
[1759418441743,3.9981,224.97,224.87,11.5897]
[1759418443141,7.02,224.98,224.89,3.9994]
[1759418443342,7.02,225.05,224.89,62.2137]
[1759418443541,33.8,225.05,224.9,7.59]
[1759418443940,33.8,225.05,224.94,7.59]
[1759418444350,62.1474,225.14,224.93,62.2017]
[1759418444650,7.02,225.12,224.99,7.59]
[1759418445046,3.9955,225.11,225.01,3.9971]
[1759418445947,7.02,225.12,225.03,3.9968]
[1759418446143,7.02,225.12,225.03,11.5868]
[1759418446344,7.02,225.12,225.03,7.59]
[1759418447350,3.9958,225.1,225.03,7.59]
[1759418447943,3.9961,225.08,224.97,7.59]
[1759418448147,7.02,225.1,224.97,7.59]
[1759418448450,7.02,225.15,225.01,7.59]
[1759418448647,3.9953,225.12,225.04,3.9966]
[1759418449152,11.015,225.15,225.04,11.5866]
[1759418449450,7.02,225.15,225.04,7.59]
[1759418449647,10.11409467,225.15,225.04,7.59]
[1759418450647,3.9955,225.11,225.04,7.59]
[1759418454253,7.08919467,225.14,225.04,7.59]
[1759418454453,7.02,225.15,225.04,7.59]
[1759418454454,3.09409467,225.13,225.04,7.59]
[1759418454653,3.09409467,225.14,225.04,7.59]
[1759418454854,7.02,225.15,225.04,7.59]
[1759418454855,3.9957,225.1,225.04,7.59]
[1759418455054,7.02,225.11,225.0,11.5874]
[1759418455656,14.10979467,225.11,225.02,3.9971]
[1759418455857,3.09409467,225.1,225.02,3.9971]
[1759418456155,3.09409467,225.1,225.0,7.59]
[1759418456358,7.02,225.11,225.0,7.59]
[1759418456751,3.09409467,225.1,225.0,7.59]
[1759418457756,3.9964,225.07,225.0,7.59]
[1759418458356,3.09409467,225.1,225.0,7.59]
[1759418458660,3.9958,225.1,225.0,11.5873]
[1759418458860,7.08989467,225.1,225.0,11.5873]
[1759418459358,3.996,225.09,225.0,11.5873]
[1759418459562,3.09409467,225.1,225.03,7.59]
[1759418459753,3.9952,225.13,225.03,7.59]
[1759418460154,3.09409467,225.15,225.06,7.59]
[1759418460554,3.09409467,225.17,225.08,3.9959]
[1759418460751,3.09409467,225.19,225.09,7.59]
[1759418460952,3.09409467,225.24,225.1,62.1551]
[1759418461157,3.9934,225.23,225.16,11.5846]
[1759418461350,3.9934,225.23,225.16,7.59]
[1759418462252,65.21259467,225.24,225.1,7.89]
[1759418462555,69.1327,225.22,225.1,7.89]
[1759418462755,3.09409467,225.21,225.1,7.89]
[1759418463158,62.1393,225.16,225.05,7.89]
[1759418463551,62.1448,225.14,225.05,7.89]
[1759418463956,3.10028703,225.13,225.05,7.89]
[1759418464265,3.996,225.09,225.05,7.89]
[1759418464462,65.24784061,225.13,224.99,9.81331321]
[1759418464463,3.10004061,225.12,225.0,7.89]
[1759418464668,69.1662,225.1,225.0,7.89]
[1759418464963,7.01,225.1,225.0,7.89]
[1759418465163,3.9965,225.06,225.0,7.89]
[1759418465959,3.996,225.08,225.0,7.89]
[1759418466158,7.01,225.1,225.0,7.89]
[1759418466361,10.10951972,225.1,225.0,7.89]
[1759418466669,62.1586,225.09,225.0,7.89]
[1759418467366,3.9961,225.08,225.0,7.89]
[1759418467560,3.9961,225.08,224.92,13.09948478]
[1759418467561,7.01,225.06,224.92,7.89]
[1759418467761,62.17,225.05,224.92,7.89]
[1759418468769,7.01,225.04,224.92,7.89]
[1759418469162,3.9976,225.0,224.92,7.89]
[1759418469570,7.01,225.01,224.92,7.89]
[1759418470169,62.1835,225.0,224.86,7.89]
[1759418470371,62.1864,224.99,224.86,7.89]
[1759418470571,3.9989,224.92,224.86,7.89]
[1759418471465,7.01,224.94,224.8,7.89]
[1759418471466,3.9993,224.9,224.8,7.89]
[1759418472872,7.01,224.94,224.8,7.89]
[1759418473072,69.2108,224.94,224.8,7.89]
[1759418473373,7.01,224.94,224.8,7.89]
[1759418473572,11.0086,224.94,224.84,7.89]
[1759418473772,7.01,224.94,224.84,7.89]
[1759418474673,3.9989,224.92,224.84,7.89]
[1759418475276,3.9984,224.95,224.86,7.89]
[1759418475480,7.01,224.99,224.86,7.89]
[1759418475772,323.38,225.04,224.9,7.89]
[1759418475773,3.9974,225.01,224.9,7.89]
[1759418476869,72.04,225.02,224.91,3.9991]
[1759418477270,72.04,225.02,224.93,11.8886]
[1759418477474,3.9964,225.07,224.94,7.89]
[1759418477672,3.07041197,225.08,224.94,7.89]
[1759418477871,7.01,225.07,224.94,7.89]
[1759418478076,3.9966,225.05,224.94,11.8885]
[1759418478268,7.01,225.07,224.94,11.8885]
[1759418478269,7.01,225.07,224.94,7.89]
[1759418478476,3.9965,225.06,224.94,11.8885]
[1759418478677,3.9965,225.06,224.94,7.89]
[1759418479581,3.9968,225.04,224.94,7.89]
[1759418480082,3.9971,225.02,224.94,7.89]
[1759418480880,3.9975,225.0,224.9,3.9992]
[1759418482283,3.9978,224.98,224.89,7.89]
[1759418483188,3.9974,225.01,224.89,7.89]
[1759418483386,140.1262,225.03,224.89,7.89]
[1759418483586,3.07177741,225.02,224.89,7.89]
[1759418484489,3.9978,224.99,224.9,3.9991]
[1759418485289,3.9972,225.02,224.92,3.9988]
[1759418486188,3.9972,225.02,224.94,3.9984]
[1759418486593,90.18,225.04,224.95,7.48]
[1759418487687,3.9969,225.03,224.95,7.48]
[1759418488894,90.18,225.04,224.95,7.48]
[1759418489089,90.18,225.04,224.95,11.4783]
[1759418489288,97.21,225.04,224.95,11.4783]
[1759418490101,3.9971,225.03,224.95,11.4783]
[1759418490693,97.21,225.04,224.95,7.48]
[1759418490900,3.9973,225.01,224.95,7.48]
[1759418491601,3.9969,225.03,224.95,7.48]
[1759418492296,7.03,225.09,224.97,69.6011]
[1759418492605,7.03,225.14,225.0,7.41]
[1759418492800,3.9952,225.13,225.05,11.4065]
[1759418493900,62.1196,225.23,225.1,7.41]
[1759418494092,3.07743179,225.22,225.1,7.41]
[1759418494296,7.03,225.21,225.1,7.41]
[1759418495404,3.994,225.2,225.1,7.41]
[1759418495596,7.03,225.21,225.1,7.41]
[1759418495797,3.9943,225.18,225.1,7.41]
[1759418496703,3.9945,225.16,225.1,7.41]
[1759418496901,7.03,225.18,225.06,7.41]
[1759418497604,62.136,225.17,225.06,7.41]
[1759418497798,7.03,225.18,225.06,7.41]
[1759418498201,3.9943,225.18,225.11,7.41]
[1759418498598,3.07545256,225.21,225.11,7.41]
[1759418498799,3.9942,225.18,225.11,7.41]
[1759418499698,3.07545256,225.2,225.11,7.41]
[1759418499895,62.1406,225.15,225.05,7.41]
[1759418500301,69.165,225.17,225.05,7.41]
[1759418500497,7.03,225.13,225.05,7.41]
[1759418500697,7.03,225.13,225.04,5.97331758]
[1759418500698,62.1496,225.12,225.04,5.97331758]
[1759418500898,3.9963,225.07,225.04,5.97331758]
[1759418501099,11.0263,225.07,225.04,5.97331758]
[1759418501499,3.9965,225.05,225.04,5.97331758]
[1759418501699,3.9965,225.05,224.95,7.41]
[1759418502004,7.03,225.07,224.95,7.41]
[1759418502700,3.9969,225.03,224.95,7.41]
[1759418503010,7.03,225.07,224.95,7.41]
[1759418503502,3.9967,225.04,224.95,7.41]
[1759418503708,180.8944,225.07,224.95,7.41]
[1759418503900,62.1685,225.05,224.95,7.41]
[1759418504097,3.9975,225.0,224.95,7.41]
[1759418504500,62.1745,225.03,224.95,7.41]
[1759418504703,3.9977,224.98,224.89,7.41]
[1759418505003,62.1801,225.01,224.89,7.41]
[1759418505204,3.9977,224.99,224.89,7.41]
[1759418506108,3.9979,224.97,224.89,7.41]
[1759418506307,62.1838,225.0,224.89,7.41]
[1759418506505,7.03,224.99,224.89,7.41]
[1759418506706,3.9983,224.95,224.89,7.41]
[1759418507002,62.1889,224.98,224.89,7.41]
[1759418507911,3.9985,224.94,224.89,7.41]
[1759418508109,7.03,224.99,224.89,7.41]
[1759418508409,10.09531488,224.99,224.89,7.41]
[1759418509401,3.9983,224.95,224.89,7.41]
[1759418509714,11.0283,224.95,224.84,11.4102]
[1759418510113,7.03,224.95,224.86,3.9998]
[1759418510509,41.34,224.99,224.85,7.41]
[1759418510705,7.03,225.01,224.85,7.41]
[1759418511308,3.9979,224.97,224.88,3.9995]
[1759418511513,3.9979,224.97,224.84,7.41]
[1759418512016,3.9979,224.97,224.89,11.4093]
[1759418512612,75.03,225.01,224.89,11.4093]
[1759418512907,118.73,225.01,224.89,11.4093]
[1759418513311,7.03,225.01,224.91,3.9989]
[1759418513510,69.2102,225.01,224.86,7.41]
[1759418514609,3.9981,224.96,224.87,3.9995]
[1759418514805,3.9981,224.96,224.86,7.41]
[1759418514806,7.03,224.95,224.8,7.41]
[1759418515108,92.45,224.95,224.8,7.41]
[1759418515309,3.9985,224.94,224.78,7.41]
[1759418515609,92.45,224.95,224.78,7.41]
[1759418516009,3.9988,224.92,224.83,11.4104]
[1759418516308,92.45,224.95,224.83,11.4104]
[1759418516810,3.999,224.92,224.83,7.41]
[1759418517016,118.73,224.95,224.83,7.41]
[1759418517214,3.9992,224.9,224.83,11.4104]
[1759418517416,3.9992,224.9,224.83,7.41]
[1759418517914,11.0295,224.88,224.83,7.41]
[1759418518111,11.0295,224.88,224.8,4.0008]
[1759418520216,11.0295,224.88,224.79,7.41]
[1759418521112,3.9998,224.87,224.79,7.41]
[1759418521416,7.03,224.88,224.76,4.0015]
[1759418521609,4.0002,224.84,224.76,4.0015]
[1759418522312,43.26,224.88,224.77,62.2444]
[1759418522612,7.03,224.89,224.78,7.58]
[1759418523313,11.0305,224.83,224.74,13.38365957]
[1759418523514,7.03,224.83,224.74,13.38365957]
[1759418523916,7.03,224.83,224.74,5.80365957]
[1759418524116,7.03,224.78,224.74,5.80365957]
[1759418524812,7.03,224.81,224.74,5.80365957]
[1759418525208,4.0011,224.79,224.74,5.80365957]
[1759418525815,7.03,224.78,224.74,5.80365957]
[1759418526013,118.73,224.82,224.74,5.80365957]
[1759418526223,7.03,224.82,224.74,5.80365957]
[1759418526517,4.0011,224.79,224.74,5.80365957]
[1759418527020,7.03,224.76,224.74,5.80365957]
[1759418527213,111.7,224.8,224.74,5.80365957]
[1759418527420,87.7,224.8,224.74,5.80365957]
[1759418527617,62.2339,224.82,224.74,5.80365957]
[1759418527818,7.03,224.81,224.74,5.80365957]
[1759418528315,115.7202,224.85,224.74,5.80365957]
[1759418528719,4.0002,224.85,224.74,5.80365957]
[1759418529323,4.0002,224.85,224.77,11.5814]
[1759418530018,4.0002,224.85,224.77,7.58]
[1759418530410,4.0004,224.84,224.74,9.80565957]
[1759418530616,69.2519,224.86,224.74,5.80365957]
[1759418530920,7.03,224.86,224.74,5.80365957]
[1759418531321,7.03,224.84,224.74,5.80365957]
[1759418531625,7.03,224.82,224.74,5.80365957]
[1759418532117,4.0011,224.79,224.74,5.80365957]
[1759418532315,7.03,224.78,224.74,5.80365957]
[1759418533215,4.0015,224.77,224.74,5.80365957]
[1759418533413,11.0315,224.77,224.74,5.80365957]
[1759418533616,7.03,224.77,224.74,5.80365957]
[1759418534321,4.0018,224.76,224.74,5.80365957]
[1759418534622,11.0318,224.76,224.74,5.80365957]
[1759418535711,7.03,224.78,224.74,5.80365957]
[1759418536020,62.2083,224.91,224.74,5.80365957]
[1759418536021,7.03,224.82,224.74,5.80365957]
[1759418536623,4.0001,224.85,224.75,7.58]
[1759418537117,3.9997,224.87,224.76,4.0015]
[1759418537316,111.72,224.88,224.75,7.58]
[1759418537317,7.03,224.89,224.75,69.8299]
[1759418537525,3.9993,224.9,224.81,11.5806]
[1759418537717,32.01,224.93,224.81,11.5806]
[1759418537917,32.01,224.93,224.81,7.58]
[1759418538224,3.9995,224.88,224.81,7.58]
[1759418541917,3.9994,224.89,224.81,7.58]
[1759418542515,7.03,224.93,224.77,62.2433]
[1759418542727,7.03,224.98,224.83,7.58]
[1759418542921,67.16602303,224.98,224.83,7.58]
[1759418543119,3.9981,224.96,224.85,4.0]
[1759418543521,3.9985,224.94,224.86,7.58]